bitfinex/quotes_BTCUSD_20241001
["timestamp","ask_amount","ask_price","bid_price","bid_amount"]
[1727786707521,0.406651,63742.0,63741.0,0.33971927]
[1727786707706,0.395651,63742.0,63741.0,0.33971927]
[1727786710469,0.396651,63742.0,63741.0,0.52891927]
[1727786710946,0.397651,63742.0,63741.0,0.61201927]
[1727786711163,0.396651,63742.0,63741.0,0.8951799]
[1727786711384,0.397651,63742.0,63741.0,0.8981799]
[1727786711588,0.3922886,63742.0,63741.0,0.77147707]
[1727786711815,0.39839795,63742.0,63741.0,0.77147707]
[1727786712278,0.39839795,63742.0,63741.0,0.433408]
[1727786712799,0.39839795,63742.0,63741.0,0.163108]
[1727786714060,0.39739795,63742.0,63741.0,0.161108]
[1727786714496,0.39739795,63742.0,63741.0,0.163108]
[1727786714721,0.39639795,63742.0,63741.0,0.158108]
[1727786715140,0.39639795,63742.0,63741.0,0.160108]
[1727786715556,0.39639795,63742.0,63741.0,0.162108]
[1727786716019,0.39639795,63742.0,63741.0,0.436108]
[1727786716221,0.39639795,63742.0,63741.0,0.434108]
[1727786716645,0.39639795,63742.0,63741.0,0.436108]
[1727786717472,0.39639795,63742.0,63741.0,0.162108]
[1727786717692,0.4372063,63742.0,63741.0,0.162108]
[1727786717923,0.4392063,63742.0,63741.0,0.005224]
[1727786718128,0.4392063,63742.0,63741.0,0.162108]
[1727786718464,0.44389188,63742.0,63741.0,0.162108]
[1727786718666,0.44389188,63742.0,63741.0,0.160108]
[1727786718865,0.44389188,63742.0,63741.0,0.158108]
[1727786719278,0.44389188,63742.0,63741.0,0.159108]
[1727786720575,0.44389188,63742.0,63741.0,0.158108]
[1727786720729,0.44389188,63742.0,63741.0,0.159108]
[1727786720938,0.40308353,63742.0,63741.0,0.159108]
[1727786721341,0.56496553,63742.0,63741.0,0.002224]
[1727786722128,0.40808353,63742.0,63741.0,0.002224]
[1727786722365,0.56496553,63742.0,63741.0,0.002224]
[1727786722569,0.68421238,63742.0,63741.0,0.002224]
[1727786722775,0.68821238,63742.0,63741.0,0.002224]
[1727786723384,0.68421238,63742.0,63741.0,0.002224]
[1727786723825,0.68421238,63742.0,63741.0,0.001224]
[1727786724052,0.68721238,63742.0,63741.0,0.001224]
[1727786724818,0.69021238,63742.0,63741.0,0.001224]
[1727786725055,0.68421238,63742.0,63741.0,0.001224]
[1727786725313,0.68821238,63742.0,63741.0,0.001224]
[1727786725565,0.69021238,63742.0,63741.0,0.001224]
[1727786725808,0.68621238,63742.0,63741.0,0.001224]
[1727786726355,0.68921238,63742.0,63741.0,0.001224]
[1727786726634,0.84567018,63742.0,63741.0,0.001224]
[1727786726881,0.84267018,63742.0,63741.0,0.001224]
[1727786727115,0.84567018,63742.0,63741.0,0.001224]
[1727786727351,0.84367018,63742.0,63741.0,0.001224]
[1727786728343,0.84567018,63742.0,63741.0,0.001224]
[1727786728852,0.84367018,63742.0,63741.0,0.001224]
[1727786729111,0.84567018,63742.0,63741.0,0.001224]
[1727786731403,0.72642333,63742.0,63741.0,0.001224]
[1727786735753,0.9080346,63742.0,63741.0,0.001224]
[1727786735966,0.9883346,63742.0,63741.0,0.001224]
[1727786736716,1.0113346,63742.0,63741.0,0.001224]
[1727786737976,1.0093346,63742.0,63741.0,0.001224]
[1727786738227,1.17778138,63742.0,63741.0,0.001224]
[1727786738664,1.17478138,63742.0,63741.0,0.001224]
[1727786738895,1.18478138,63742.0,63741.0,0.001224]
[1727786739392,1.28978138,63742.0,63741.0,0.001224]
[1727786739646,1.28478138,63742.0,63741.0,0.001224]
[1727786740177,1.29978138,63742.0,63741.0,0.001224]
[1727786740439,1.49508138,63742.0,63741.0,0.001224]
[1727786740697,1.54198611,63742.0,63741.0,0.001224]
[1727786740956,1.49508138,63742.0,63741.0,0.001224]
[1727786741227,1.54198611,63742.0,63741.0,0.001224]
[1727786741488,1.48508138,63742.0,63741.0,0.001224]
[1727786741731,1.49908138,63742.0,63741.0,0.001224]
[1727786742196,1.48908138,63742.0,63741.0,0.001224]
[1727786742445,1.50308138,63742.0,63741.0,0.001224]
[1727786742932,1.51367771,63742.0,63741.0,0.001224]
[1727786743176,1.52767771,63742.0,63741.0,0.001224]
[1727786744150,1.59800027,63742.0,63741.0,0.001224]
[1727786744648,1.52767771,63742.0,63741.0,0.001224]
[1727786745178,1.56995506,63742.0,63741.0,0.001224]
[1727786745414,1.58395895,63742.0,63741.0,0.001224]
[1727786746338,1.59795895,63742.0,63741.0,0.001224]
[1727786747379,1.52767771,63742.0,63741.0,0.001224]
[1727786748368,1.5745061,63742.0,63741.0,0.001224]
[1727786748887,1.52767771,63742.0,63741.0,0.001224]
[1727786749152,1.57450622,63742.0,63741.0,0.001224]
[1727786749399,1.57449897,63742.0,63741.0,0.001224]
[1727786749946,1.54649897,63742.0,63741.0,0.001224]
[1727786750351,1.34606644,63742.0,63741.0,0.001224]
[1727786750586,1.51367771,63742.0,63741.0,0.001224]
[1727786751696,1.49967771,63742.0,63741.0,0.001224]
[1727786751958,1.51167771,63742.0,63741.0,0.001224]
[1727786752175,1.49267771,63742.0,63741.0,0.001224]
[1727786753547,1.51567771,63742.0,63741.0,0.001224]
[1727786756809,1.03046644,63742.0,63741.0,0.001224]
[1727786757028,1.01087011,63742.0,63741.0,0.001224]
[1727786757737,1.00587011,63742.0,63741.0,0.001224]
[1727786757962,1.03387011,63742.0,63741.0,0.001224]
[1727786758423,1.01987011,63742.0,63741.0,0.001224]
[1727786759058,1.01787011,63742.0,63741.0,0.001224]
[1727786759492,1.02487011,63742.0,63741.0,0.001224]
[1727786759697,1.02987011,63742.0,63741.0,0.001224]
[1727786759884,1.14716603,63742.0,63741.0,0.001224]
[1727786760330,1.13116603,63742.0,63741.0,0.001224]
[1727786760548,1.11716603,63742.0,63741.0,0.001224]
[1727786761835,1.11916603,63742.0,63741.0,0.001224]
[1727786762048,1.13116603,63742.0,63741.0,0.001224]
[1727786762694,1.14716603,63742.0,63741.0,0.001224]
[1727786762911,1.13316603,63742.0,63741.0,0.001224]
[1727786763137,1.13116603,63742.0,63741.0,0.001224]
[1727786763348,1.14716603,63742.0,63741.0,0.001224]
[1727786763558,1.13316603,63742.0,63741.0,0.001224]
[1727786763807,1.11916603,63742.0,63741.0,0.001224]
[1727786764018,1.17997995,63742.0,63741.0,0.001224]
[1727786764465,1.15538403,63742.0,63741.0,0.001224]
[1727786765165,1.16938403,63742.0,63741.0,0.001224]
[1727786765586,1.15538403,63742.0,63741.0,0.001224]
[1727786765795,1.15543446,63742.0,63741.0,0.001224]
[1727786766009,1.10857011,63742.0,63741.0,0.001224]
[1727786766216,1.16943303,63742.0,63741.0,0.001224]
[1727786766637,1.15543303,63742.0,63741.0,0.001224]
[1727786766847,1.15543678,63742.0,63741.0,0.001224]
[1727786767052,1.35104825,63742.0,63741.0,0.001224]
[1727786767282,1.37564525,63742.0,63741.0,0.001224]
[1727786767491,1.36164525,63742.0,63741.0,0.001224]
[1727786767703,1.38499926,63742.0,63741.0,0.001224]
[1727786767920,1.31477838,63742.0,63741.0,0.001224]
[1727786768346,1.36980922,63742.0,63741.0,0.001224]
[1727786768776,1.29018138,63742.0,63741.0,0.001224]
[1727786768997,1.27618138,63742.0,63741.0,0.001224]
[1727786769211,1.30418138,63742.0,63741.0,0.001224]
[1727786769410,1.42138464,63742.0,63741.0,0.001224]
[1727786769710,1.40738464,63742.0,63741.0,0.001224]
[1727786770209,1.42138464,63742.0,63741.0,0.001224]
[1727786770667,1.40738464,63742.0,63741.0,0.001224]
[1727786770881,1.42138464,63742.0,63741.0,0.001224]
[1727786771306,1.43198242,63742.0,63741.0,0.001224]
[1727786771722,1.42138464,63742.0,63741.0,0.001224]
[1727786773031,1.40738464,63742.0,63741.0,0.001224]
[1727786773244,1.29018138,63742.0,63741.0,0.001224]
[1727786773867,1.30418138,63742.0,63741.0,0.001224]
[1727786774084,1.12057011,63742.0,63741.0,0.001224]
[1727786774306,1.29018138,63742.0,63741.0,0.001224]
[1727786774549,1.40741166,63742.0,63741.0,0.001224]
[1727786774770,1.54786082,63742.0,63741.0,0.001224]
[1727786775030,1.32877874,63742.0,63741.0,0.001224]
[1727786775454,1.31477874,63742.0,63741.0,0.001224]
[1727786776224,1.32877874,63742.0,63741.0,0.001224]
[1727786776458,1.31477874,63742.0,63741.0,0.001224]
[1727786776723,1.31477874,63742.0,63734.0,4.302e-05]
[1727786776724,0.30858458,63735.0,63734.0,4.302e-05]
[1727786776982,1.15415923,63735.0,63734.0,4.302e-05]
[1727786777233,1.12114312,63735.0,63734.0,4.302e-05]
[1727786777484,1.14574312,63735.0,63734.0,4.302e-05]
[1727786778738,1.35004312,63735.0,63734.0,4.302e-05]
[1727786778974,1.5064899,63735.0,63734.0,4.302e-05]
[1727786779210,1.52125731,63735.0,63734.0,4.302e-05]
[1727786780222,1.53525731,63735.0,63734.0,4.302e-05]
[1727786781069,1.5204899,63735.0,63734.0,4.302e-05]
[1727786781280,1.3301899,63735.0,63734.0,4.302e-05]
[1727786782365,0.37811658,63722.0,63721.0,0.0004]
[1727786782576,1.20525035,63722.0,63721.0,0.0004]
[1727786782836,1.11879596,63722.0,63721.0,0.0004]
[1727786783090,0.93518469,63722.0,63721.0,0.0004]
[1727786783306,1.10062905,63722.0,63721.0,0.0004]
[1727786783532,1.17530844,63722.0,63721.0,0.0004]
[1727786783748,1.17530844,63722.0,63717.0,0.19976934]
[1727786783749,0.30663658,63714.0,63713.0,0.000824]
[1727786783966,1.10531076,63714.0,63713.0,0.000824]
[1727786784186,1.03499425,63714.0,63713.0,0.000824]
[1727786784413,1.01513112,63714.0,63713.0,0.000824]
[1727786784624,1.26702923,63714.0,63713.0,0.000824]
[1727786785488,1.05379139,63714.0,63713.0,0.000824]
[1727786785905,1.07839921,63714.0,63713.0,0.000824]
[1727786786321,1.09239921,63714.0,63713.0,0.000824]
[1727786786530,1.13922344,63714.0,63713.0,0.000824]
[1727786787373,1.09239921,63714.0,63713.0,0.000824]
[1727786787582,1.08239921,63714.0,63713.0,0.000824]
[1727786788436,1.05779139,63714.0,63713.0,0.000824]
[1727786788707,1.05279139,63714.0,63713.0,0.000824]
[1727786788966,1.04379139,63714.0,63713.0,0.000824]
[1727786789227,1.02979139,63714.0,63713.0,0.000824]
[1727786789440,1.03879139,63714.0,63713.0,0.183124]
[1727786789648,1.05279139,63714.0,63713.0,0.183124]
[1727786790073,1.03879139,63714.0,63713.0,0.183124]
[1727786790296,1.05279139,63714.0,63713.0,0.183124]
[1727786790746,1.03879139,63714.0,63713.0,0.183124]
[1727786791366,1.02479139,63714.0,63713.0,0.000824]
[1727786791584,1.04939715,63714.0,63713.0,0.000824]
[1727786791795,1.07739715,63714.0,63713.0,0.000824]
[1727786792030,1.06339715,63714.0,63713.0,0.000824]
[1727786792463,1.07739715,63714.0,63713.0,0.000824]
[1727786792874,1.06339715,63714.0,63713.0,0.000824]
[1727786793299,1.07739715,63714.0,63713.0,0.000824]
[1727786794655,1.06339715,63714.0,63713.0,0.000824]
[1727786794869,1.07739715,63714.0,63713.0,0.000824]
[1727786795313,1.06339715,63714.0,63713.0,0.000824]
[1727786795593,1.07739715,63714.0,63713.0,0.000824]
[1727786797173,0.4578813,63714.0,63713.0,0.280624]
[1727786797885,0.40527554,63714.0,63713.0,0.280624]
[1727786798105,0.43327554,63714.0,63713.0,0.280624]
[1727786798778,0.44327554,63714.0,63713.0,0.280624]
[1727786798991,0.41927554,63714.0,63713.0,0.280624]
[1727786799434,0.41427554,63714.0,63713.0,0.280624]
[1727786799643,0.44720309,63714.0,63713.0,0.280624]
[1727786799855,0.45520309,63714.0,63713.0,0.280624]
[1727786800276,0.44720309,63714.0,63713.0,0.280624]
[1727786800522,0.40527554,63714.0,63713.0,0.280624]
[1727786800743,0.41027554,63714.0,63713.0,0.280624]
[1727786801197,0.19558996,63714.0,63713.0,0.280624]
[1727786801408,0.19558996,63714.0,63713.0,0.000824]
[1727786801409,0.00437959,63714.0,63713.0,0.000824]
[1727786801627,0.00968558,63723.0,63713.0,0.01951998]
[1727786801883,0.46772148,63714.0,63713.0,0.000824]
[1727786802097,0.46772148,63714.0,63713.0,0.077724]
[1727786802369,0.47366253,63714.0,63713.0,0.077724]
[1727786802582,0.47226253,63714.0,63713.0,0.079124]
[1727786802804,0.27726253,63714.0,63713.0,0.079124]
[1727786803248,0.27226253,63714.0,63713.0,0.079124]
[1727786803456,0.27326253,63714.0,63713.0,0.08917497]
[1727786803675,0.27526253,63714.0,63713.0,0.08917497]
[1727786804322,0.27326253,63714.0,63713.0,0.08917497]
[1727786804539,0.27326253,63714.0,63713.0,0.09217497]
[1727786804748,0.27226253,63714.0,63713.0,0.09017497]
[1727786805172,0.27226253,63714.0,63713.0,0.09417497]
[1727786805388,0.27226253,63714.0,63713.0,0.09017497]
[1727786805840,0.27226253,63714.0,63713.0,0.09217497]
[1727786806051,0.27226253,63714.0,63713.0,0.08717497]
[1727786806393,0.27326253,63714.0,63713.0,0.08717497]
[1727786807009,0.27526253,63714.0,63713.0,0.08717497]
[1727786807645,0.27326253,63714.0,63713.0,0.08717497]
[1727786808274,0.27226253,63714.0,63713.0,0.08717497]
[1727786808668,0.27426253,63714.0,63713.0,0.08717497]
[1727786809708,0.27226253,63714.0,63713.0,0.08717497]
[1727786819777,0.27391053,63714.0,63713.0,0.08717497]
[1727786822123,0.27391053,63714.0,63713.0,0.077724]
[1727786822384,0.28359611,63714.0,63713.0,0.000824]
[1727786822619,0.28559611,63714.0,63713.0,0.000824]
[1727786823840,0.29059611,63714.0,63713.0,0.000824]
[1727786825088,0.28559611,63714.0,63713.0,0.000824]
[1727786825382,0.29259611,63714.0,63713.0,0.001824]
[1727786825589,0.29359611,63714.0,63713.0,0.001824]
[1727786825819,0.28659611,63714.0,63713.0,0.000824]
[1727786826071,0.28859611,63714.0,63713.0,0.000824]
[1727786826306,0.29559611,63714.0,63713.0,0.001824]
[1727786826545,0.29891053,63714.0,63713.0,0.002824]
[1727786826780,0.30673466,63714.0,63713.0,0.002824]
[1727786827025,0.29573466,63714.0,63713.0,0.001824]
[1727786827291,0.29259611,63714.0,63713.0,0.001824]
[1727786827823,0.29259611,63714.0,63713.0,0.000824]
[1727786827824,0.28559611,63714.0,63713.0,0.000824]
[1727786828088,0.67986768,63714.0,63713.0,0.000824]
[1727786828328,0.83818693,63714.0,63713.0,0.000824]
[1727786828565,0.85618693,63714.0,63713.0,0.000824]
[1727786829045,0.85818693,63714.0,63713.0,0.000824]
[1727786829289,0.93388693,63714.0,63713.0,0.000824]
[1727786829544,0.94188693,63714.0,63713.0,0.001824]
[1727786830506,0.94588693,63714.0,63713.0,0.001824]
[1727786831039,0.94188693,63714.0,63713.0,0.001824]
[1727786831502,0.48889611,63714.0,63713.0,0.001824]
[1727786832223,0.48889611,63714.0,63713.0,0.002824]
[1727786832224,0.49589611,63714.0,63713.0,0.002824]
[1727786833183,0.67750738,63714.0,63713.0,0.002824]
[1727786833419,0.85696518,63714.0,63713.0,0.002824]
[1727786833907,0.88156929,63714.0,63713.0,0.002824]
[1727786834128,0.97815102,63714.0,63713.0,0.002824]
[1727786837102,0.95354691,63714.0,63713.0,0.002824]
[1727786839788,0.77193564,63714.0,63713.0,0.002824]
[1727786840504,0.65235391,63714.0,63713.0,0.002824]
[1727786840741,0.30059611,63714.0,63713.0,0.002824]
[1727786840962,0.30259611,63714.0,63713.0,0.002824]
[1727786845037,0.83156518,63714.0,63713.0,0.002824]
[1727786845696,0.85456518,63714.0,63713.0,0.002824]
[1727786845910,0.95061691,63714.0,63713.0,0.002824]
[1727786847952,0.76900564,63714.0,63713.0,0.002824]
[1727786849983,0.67295391,63714.0,63713.0,0.002824]
[1727786857555,0.64995391,63714.0,63713.0,0.002824]
[1727786858029,0.49349611,63714.0,63713.0,0.002824]
[1727786858494,0.65044711,63714.0,63713.0,0.002824]
[1727786859219,0.65328885,63714.0,63713.0,0.002824]
[1727786859998,0.80973563,63714.0,63713.0,0.002824]
[1727786862728,0.65328885,63714.0,63713.0,0.002824]
[1727786874625,0.29375227,63714.0,63713.0,0.240877]
[1727786875089,0.29375227,63714.0,63713.0,0.46860565]
[1727786875327,0.28375227,63714.0,63713.0,0.38134657]
[1727786875568,0.26796948,63714.0,63713.0,0.12904026]
[1727786875787,0.27554731,63714.0,63713.0,0.13104026]
[1727786876015,0.27554731,63714.0,63713.0,0.12904026]
[1727786876252,0.27654731,63714.0,63713.0,0.29399326]
[1727786876485,0.27654731,63714.0,63713.0,0.44898618]
[1727786876716,0.27554731,63714.0,63713.0,0.39386992]
[1727786876939,0.27554731,63714.0,63713.0,0.084924]
[1727786877831,0.27754731,63714.0,63713.0,0.081924]
[1727786878044,0.27554731,63714.0,63713.0,0.084924]
[1727786878264,0.27554731,63714.0,63713.0,0.088924]
[1727786878563,0.68126969,63714.0,63713.0,0.007824]
[1727786878784,0.68626969,63714.0,63713.0,0.000824]
[1727786878997,0.68826969,63714.0,63713.0,0.003824]
[1727786879214,0.68826969,63714.0,63713.0,0.005824]
[1727786879436,0.68826969,63714.0,63713.0,0.000824]
[1727786879885,0.68826969,63714.0,63713.0,0.001824]
[1727786880118,0.64008389,63714.0,63713.0,0.001824]
[1727786881047,0.64008389,63714.0,63713.0,0.000824]
[1727786881519,0.64208389,63714.0,63713.0,0.000824]
[1727786881761,0.64508389,63714.0,63713.0,0.000824]
[1727786881991,0.64308389,63714.0,63713.0,0.000824]
[1727786882225,0.64508389,63714.0,63713.0,0.001824]
[1727786882465,0.64508389,63714.0,63713.0,0.002824]
[1727786882466,0.65108389,63714.0,63713.0,0.002824]
[1727786889737,0.45518389,63714.0,63713.0,0.002824]
[1727786889961,0.29154731,63714.0,63713.0,0.159777]
[1727786890251,0.28654731,63714.0,63713.0,0.30314589]
[1727786890506,0.27896948,63714.0,63713.0,0.30314589]
[1727786891024,0.28570415,63714.0,63713.0,0.30314589]
[1727786891257,0.27970415,63714.0,63713.0,0.30214589]
[1727786891532,0.27570415,63714.0,63713.0,0.083524]
[1727786891727,0.27770415,63714.0,63713.0,0.083524]
[1727786891980,0.27870415,63714.0,63713.0,0.088524]
[1727786892466,0.27670415,63714.0,63713.0,0.078524]
[1727786892715,0.27470415,63714.0,63713.0,0.085524]
[1727786892967,0.43165515,63714.0,63713.0,0.007824]
[1727786893479,0.27470415,63714.0,63713.0,0.085724]
[1727786893707,0.27470415,63714.0,63713.0,0.242677]
[1727786893934,0.27470415,63714.0,63713.0,0.239677]
[1727786894195,0.27470415,63714.0,63713.0,0.235677]
[1727786894458,0.27470415,63714.0,63713.0,0.36443695]
[1727786894692,0.26796948,63714.0,63713.0,0.36443695]
[1727786894933,0.26796948,63714.0,63713.0,0.51589475]
[1727786895162,0.26796948,63714.0,63713.0,0.835754]
[1727786895393,0.26796948,63714.0,63713.0,0.936754]
[1727786895902,0.26796948,63714.0,63713.0,0.933754]
[1727786896144,0.26796948,63714.0,63713.0,0.98328438]
[1727786897373,0.26796948,63714.0,63713.0,1.1294853]
[1727786897624,0.26796948,63714.0,63713.0,0.98828438]
[1727786897854,0.26896948,63714.0,63713.0,0.99428438]
[1727786898143,0.26896948,63714.0,63713.0,0.99028438]
[1727786898374,0.26896948,63714.0,63713.0,1.00128438]
[1727786898611,0.26896948,63714.0,63713.0,0.99428438]
[1727786898852,0.26896948,63714.0,63713.0,0.99028438]
[1727786898853,0.26996948,63714.0,63713.0,0.99028438]
[1727786899116,0.27096948,63714.0,63713.0,1.00128438]
[1727786899374,0.27096948,63714.0,63713.0,1.17789565]
[1727786899886,0.27096948,63714.0,63713.0,1.30039871]
[1727786900122,0.27096948,63714.0,63713.0,1.18289565]
[1727786900586,0.27096948,63714.0,63713.0,1.29947629]
[1727786903515,0.27096948,63714.0,63713.0,1.1819947]
[1727786904523,0.27096948,63714.0,63713.0,1.29940158]
[1727786905479,0.27096948,63714.0,63713.0,1.29914503]
[1727786905967,0.0491268,63726.0,63725.0,0.00031442]
[1727786906218,0.0491268,63726.0,63725.0,0.338824]
[1727786906451,0.23508208,63728.0,63725.0,0.256924]
[1727786906683,0.1801,63729.0,63728.0,0.156916]
[1727786906916,0.1801,63729.0,63728.0,0.2139933]
[1727786907404,0.65085,63729.0,63728.0,0.2139933]
[1727786908168,0.65085,63729.0,63728.0,0.2159933]
[1727786908402,0.65085,63729.0,63728.0,0.2189933]
[1727786908881,0.47075,63729.0,63728.0,0.2189933]
[1727786909149,0.47075,63729.0,63728.0,0.70016552]
[1727786909626,0.23508208,63744.0,63737.0,0.43881969]
[1727786909896,0.23508208,63744.0,63737.0,0.67577749]
[1727786910178,0.23508208,63744.0,63741.0,0.15719842]
[1727786910392,0.23508208,63744.0,63741.0,0.49809024]
[1727786910696,0.00165,63749.0,63741.0,0.49495307]
[1727786910870,0.00165,63749.0,63741.0,0.61723491]
[1727786911116,0.472298,63742.0,63741.0,0.61723491]
[1727786911847,0.473298,63742.0,63741.0,0.62923491]
[1727786912317,0.473298,63742.0,63741.0,0.72923491]
[1727786912545,0.474298,63742.0,63741.0,0.74023491]
[1727786913331,0.474298,63742.0,63741.0,0.75447978]
[1727786913822,0.474298,63742.0,63741.0,0.75947978]
[1727786915224,0.48096609,63742.0,63741.0,0.75947978]
[1727786915952,0.48096609,63742.0,63741.0,0.57786851]
[1727786916389,0.48096609,63742.0,63741.0,0.57286851]
[1727786916833,0.48096609,63742.0,63741.0,0.57786851]
[1727786917095,0.48096609,63742.0,63741.0,0.57286851]
[1727786917289,0.48096609,63742.0,63741.0,0.57786851]
[1727786917507,0.48096609,63742.0,63741.0,0.57286851]
[1727786919592,0.48096609,63742.0,63741.0,0.023]
[1727786919820,0.48096609,63742.0,63741.0,0.279884]
[1727786926696,0.47719135,63742.0,63741.0,0.279884]
[1727786928325,0.47419135,63742.0,63741.0,0.279884]
[1727786928799,0.47219135,63742.0,63741.0,0.279884]
[1727786929032,0.47219135,63742.0,63741.0,0.40209]
[1727786930472,0.47219135,63742.0,63741.0,0.5585478]
[1727786930765,0.47219135,63742.0,63741.0,0.81575907]
[1727786933913,0.47219135,63742.0,63741.0,0.82075907]
[1727786934643,0.47219135,63742.0,63741.0,1.02946117]
[1727786934869,0.47219135,63742.0,63741.0,1.04417769]
[1727786934870,0.46552326,63742.0,63741.0,1.04417769]
[1727786935322,0.47215832,63742.0,63741.0,1.04417761]
[1727786935554,0.47215832,63742.0,63741.0,0.99737184]
[1727786935770,0.47115832,63742.0,63741.0,0.98637184]
[1727786935991,0.47115832,63742.0,63741.0,1.03318837]
[1727786935992,0.46452326,63742.0,63741.0,1.03318837]
[1727786936231,0.46452326,63742.0,63741.0,1.57048684]
[1727786936232,0.47217763,63742.0,63741.0,1.57048684]
[1727786936512,0.47217763,63742.0,63741.0,1.86349004]
[1727786936739,0.46552326,63742.0,63741.0,1.79328689]
[1727786936966,0.46552326,63742.0,63741.0,1.86351363]
[1727786937186,0.46352326,63742.0,63741.0,1.76828689]
[1727786937409,0.46452326,63742.0,63741.0,1.85151365]
[1727786937642,0.46452326,63742.0,63741.0,1.77128689]
[1727786937892,0.46452326,63742.0,63741.0,1.73536789]
[1727786938342,0.46452326,63742.0,63741.0,1.80415483]
[1727786938567,0.46452326,63742.0,63741.0,1.80497783]
[1727786938794,0.46616926,63742.0,63741.0,1.94538414]
[1727786939265,0.44733698,63742.0,63741.0,1.80497783]
[1727786939481,0.44733698,63742.0,63741.0,1.79197783]
[1727786939482,0.44633698,63742.0,63741.0,1.79197783]
[1727786939953,0.44733698,63742.0,63741.0,1.80597783]
[1727786940195,0.34763687,63742.0,63741.0,1.62575689]
[1727786940417,0.34763687,63742.0,63741.0,1.61175689]
[1727786940644,0.34663687,63742.0,63741.0,1.76864089]
[1727786941132,0.34763687,63742.0,63741.0,1.76864089]
[1727786941362,0.34763687,63742.0,63741.0,1.78264089]
[1727786941593,0.33064787,63742.0,63741.0,1.75464089]
[1727786941837,0.2043579,63742.0,63741.0,1.75464089]
[1727786942100,0.00165,63749.0,63748.0,0.216317]
[1727786942369,0.0492042,63750.0,63749.0,0.58072627]
[1727786942595,0.002,63757.0,63752.0,0.316307]
[1727786942825,0.002,63757.0,63752.0,3.3178085]
[1727786944014,0.002,63757.0,63752.0,3.0265595]
[1727786944239,0.002,63757.0,63752.0,2.9010395]
[1727786944463,0.002,63757.0,63752.0,2.9150395]
[1727786944694,0.003,63753.0,63752.0,2.8525485]
[1727786945155,0.002,63753.0,63752.0,2.8525485]
[1727786945398,0.002,63753.0,63752.0,2.8385485]
[1727786945628,0.002,63757.0,63756.0,0.38645]
[1727786945858,0.002,63757.0,63756.0,1.56597212]
[1727786946102,0.002,63757.0,63756.0,6.21661537]
[1727786946340,0.002,63757.0,63756.0,4.42785637]
[1727786947098,0.002,63757.0,63756.0,4.31082412]
[1727786947350,0.002,63760.0,63759.0,0.39399]
[1727786947571,0.002,63760.0,63759.0,5.88040099]
[1727786947836,0.002,63760.0,63759.0,5.77065699]
[1727786948052,0.001648,63763.0,63762.0,0.49789427]
[1727786948290,0.001648,63763.0,63762.0,6.170964]
[1727786948992,0.001648,63763.0,63762.0,5.357847]
[1727786949266,0.001648,63763.0,63762.0,1.49423165]
[1727786949742,0.001648,63763.0,63762.0,1.49416434]
[1727786950672,0.001648,63763.0,63762.0,1.72924642]
[1727786950900,0.001648,63763.0,63762.0,1.49416434]
[1727786951134,0.001648,63763.0,63762.0,1.492922]
[1727786951358,0.2438691,63779.0,63764.0,0.316278]
[1727786951590,0.2438691,63779.0,63764.0,5.11702551]
[1727786951815,0.2438691,63779.0,63764.0,5.13397008]
[1727786952269,0.2438691,63779.0,63777.0,0.44340727]
[1727786952500,0.2438691,63779.0,63777.0,0.64661719]
[1727786952765,0.2438691,63779.0,63777.0,0.59986507]
[1727786952766,0.00852667,63778.0,63777.0,0.59986507]
[1727786953003,0.00852667,63778.0,63777.0,0.65701821]
[1727786953004,0.001648,63778.0,63777.0,0.65701821]
[1727786953483,0.001648,63778.0,63777.0,0.89210029]
[1727786953712,0.001648,63778.0,63777.0,0.67101821]
[1727786954192,0.001648,63778.0,63777.0,0.90610029]
[1727786954426,0.001648,63778.0,63777.0,0.97494851]
[1727786954648,0.001648,63778.0,63777.0,0.98894851]
[1727786955097,0.001648,63778.0,63777.0,1.10580061]
[1727786955336,0.001648,63778.0,63777.0,0.98894851]
[1727786955603,0.001648,63778.0,63777.0,1.02039851]
[1727786955837,0.001648,63778.0,63777.0,1.13664224]
[1727786956296,0.001648,63778.0,63777.0,1.15097543]
[1727786956525,0.001648,63778.0,63777.0,1.03420906]
[1727786956982,0.001648,63778.0,63777.0,1.00620906]
[1727786957214,0.001648,63778.0,63777.0,1.02020906]
[1727786957445,0.001648,63778.0,63777.0,0.95140906]
[1727786957671,0.001648,63778.0,63777.0,1.00745217]
[1727786957914,0.001648,63778.0,63777.0,0.50377737]
[1727786958140,0.001648,63778.0,63777.0,0.74608742]
[1727786958377,0.001648,63778.0,63777.0,0.69938864]
[1727786958614,0.001648,63778.0,63777.0,0.91605864]
[1727786958840,0.001648,63778.0,63777.0,1.13645984]
[1727786959063,0.001648,63778.0,63777.0,1.28122528]
[1727786959535,0.001648,63778.0,63777.0,1.25780207]
[1727786959765,0.001648,63778.0,63777.0,1.28122528]
[1727786960021,0.001648,63778.0,63777.0,1.25780102]
[1727786960246,0.1886,63787.0,63780.0,0.293238]
[1727786960494,0.1886,63787.0,63780.0,0.51237845]
[1727786961237,0.0499627,63790.0,63780.0,0.51237845]
[1727786961238,0.263848,63781.0,63780.0,0.47592845]
[1727786961463,0.002,63788.0,63784.0,0.1]
[1727786961696,0.0499627,63790.0,63789.0,0.156766]
[1727786961926,0.002,63791.0,63790.0,0.256764]
[1727786962129,0.313529,63791.0,63790.0,0.413527]
[1727786962411,0.313529,63791.0,63790.0,0.570291]
[1727786963100,0.313529,63791.0,63790.0,0.256764]
[1727786963569,0.313529,63791.0,63790.0,0.4132218]
[1727786963805,0.313529,63791.0,63790.0,0.46275072]
[1727786964044,0.313529,63791.0,63790.0,0.64436199]
[1727786964565,0.313529,63791.0,63790.0,0.65336199]
[1727786965251,0.313529,63791.0,63790.0,0.64436199]
[1727786966415,0.313529,63791.0,63790.0,0.65336199]
[1727786966647,0.313529,63791.0,63790.0,0.66736199]
[1727786966875,0.313529,63791.0,63790.0,0.65836199]
[1727786967357,0.313529,63791.0,63790.0,0.67236199]
[1727786968012,0.313529,63791.0,63790.0,0.49075072]
[1727786968526,0.313529,63791.0,63790.0,0.67236199]
[1727786970237,0.313529,63791.0,63790.0,0.49075072]
[1727786970910,0.569229,63791.0,63790.0,0.33429292]
[1727786971380,0.50101134,63791.0,63790.0,0.33429292]
[1727786972112,0.50101134,63791.0,63790.0,0.49075072]
[1727786976773,0.50265734,63791.0,63790.0,0.49075072]
[1727786979193,0.32225734,63791.0,63790.0,0.57455072]
[1727786979670,0.315175,63791.0,63790.0,0.49575072]
[1727786980565,0.315175,63791.0,63790.0,0.54251065]
[1727786981503,0.315175,63791.0,63790.0,0.56589062]